bitfinex/quotes_SOLUSD_20230120
["timestamp","ask_amount","ask_price","bid_price","bid_amount"]
[1674253387276,52.12353,25.336,25.315,21.256667]
[1674253387473,3.47353,25.335,25.315,21.256667]
[1674253387683,32.12353,25.334,25.315,21.256667]
[1674253387892,2.51353,25.333,25.315,21.256667]
[1674253388110,40.95775626,25.333,25.315,21.256667]
[1674253388416,38.44422626,25.332,25.315,21.256667]
[1674253389471,118.4,25.364,25.315,21.256667]
[1674253389472,29.58,25.363,25.316,0.96]
[1674253389701,36.11679292,25.34,25.316,17.96]
[1674253390023,2.51353,25.362,25.316,17.96]
[1674253390024,29.58,25.361,25.316,17.96]
[1674253390200,2.51353,25.36,25.317,20.0]
[1674253390634,140.9343357,25.359,25.318,17.96]
[1674253390859,2.51353,25.358,25.318,17.96]
[1674253391075,149.98465862,25.358,25.318,17.96]
[1674253391285,147.47112862,25.357,25.318,0.96]
[1674253391472,32.09353,25.356,25.316,0.96]
[1674253391684,20.0,25.355,25.316,0.96]
[1674253391901,32.10353,25.354,25.316,0.96]
[1674253392107,22.51353,25.353,25.316,0.96]
[1674253392320,2.51353,25.353,25.316,0.96]
[1674253392534,2.51353,25.353,25.316,37.96]
[1674253392750,57.62494929,25.361,25.316,37.96]
[1674253392966,45.29945156,25.364,25.317,11.70719146]
[1674253393174,29.56,25.378,25.318,39.248]
[1674253393581,117.2016,25.391,25.318,39.248]
[1674253393582,45.29945156,25.375,25.319,11.70719146]
[1674253393794,118.4,25.389,25.32,24.77101]
[1674253394005,2.51353,25.378,25.321,17.0]
[1674253394225,2.51353,25.378,25.322,22.248]
[1674253394226,29.56,25.377,25.322,22.248]
[1674253394437,2.51353,25.376,25.323,17.0]
[1674253394651,2.51353,25.376,25.324,2.248]
[1674253394837,22.51353,25.376,25.324,33.95519146]
[1674253395052,22.51353,25.376,25.325,28.70719146]
[1674253395053,2.51353,25.376,25.325,28.70719146]
[1674253395270,21.756667,25.379,25.326,22.248]
[1674253395591,24.270197,25.379,25.327,17.0]
[1674253395784,2.51353,25.378,25.328,20.96]
[1674253395997,29.56,25.377,25.328,31.70719146]
[1674253396208,20.0,25.376,25.328,31.70719146]
[1674253396528,32.07353,25.375,25.326,1.288]
[1674253396735,22.51353,25.374,25.326,1.288]
[1674253396946,150.47353,25.373,25.326,1.288]
[1674253397152,2.51353,25.372,25.327,11.70719146]
[1674253397483,2.51353,25.372,25.326,1.288]
[1674253398011,180.18679292,25.371,25.326,1.288]
[1674253398326,39.51353,25.37,25.326,1.288]
[1674253398530,32.08353,25.369,25.32,11.70719146]
[1674253398744,118.4,25.367,25.315,21.256667]
[1674253398946,53.04353,25.366,25.315,21.256667]
[1674253399191,2.51353,25.365,25.315,21.256667]
[1674253399678,29.58,25.364,25.316,1.258]
[1674253399892,2.51353,25.363,25.316,1.258]
[1674253400325,2.51353,25.363,25.315,21.256667]
[1674253400326,118.4,25.361,25.315,21.256667]
[1674253400518,53.33576951,25.362,25.315,21.256667]
[1674253400519,120.91353,25.359,25.315,21.256667]
[1674253400853,52.09353,25.358,25.315,21.256667]
[1674253401058,2.51353,25.357,25.315,21.256667]
[1674253401276,2.51353,25.357,25.316,11.70719146]
[1674253402095,20.0,25.363,25.316,11.70719146]
[1674253402096,20.0,25.365,25.317,37.96]
[1674253402312,29.56,25.378,25.318,1.289]
[1674253402521,23.75576951,25.375,25.319,0.96]
[1674253402730,29.54,25.39,25.32,3.81201]
[1674253402938,29.54,25.39,25.321,3.48291]
[1674253403165,29.54,25.393,25.322,3.81181]
[1674253403363,29.54,25.397,25.323,3.48271]
[1674253403577,23.75576951,25.386,25.324,1.289]
[1674253403781,29.55,25.385,25.325,121.88251]
[1674253403996,29.54,25.39,25.326,40.81041]
[1674253404208,29.54,25.39,25.327,3.48231]
[1674253404411,29.54,25.39,25.328,1.288]
[1674253404634,29.54,25.39,25.329,0.96]
[1674253404847,5.87972234,25.43,25.33,2.52201]
[1674253404848,29.54,25.397,25.33,2.52201]
[1674253405042,29.54,25.397,25.331,119.36]
[1674253405251,29.54,25.397,25.332,157.92181]
[1674253405463,29.54,25.397,25.333,3.48171]
[1674253405686,29.54,25.397,25.334,2.52161]
[1674253405904,146.7416,25.391,25.335,0.96]
[1674253406214,22.256667,25.379,25.336,54.37619655]
[1674253406426,22.256667,25.379,25.337,20.96]
[1674253406642,22.256667,25.379,25.337,71.85478655]
[1674253406830,22.256667,25.379,25.338,51.85478655]
[1674253407038,22.256667,25.379,25.339,20.0]
[1674253407246,49.56,25.378,25.339,20.0]
[1674253407469,2.51353,25.377,25.339,20.0]
[1674253407669,29.56,25.376,25.331,11.70719146]
[1674253407879,22.51353,25.375,25.316,1.173]
[1674253408090,29.56,25.374,25.317,14.23050146]
[1674253408310,22.256667,25.379,25.318,3.69621]
[1674253408531,22.256667,25.379,25.319,2.52311]
[1674253408727,29.56,25.378,25.32,1.172]
[1674253408945,29.56,25.378,25.321,2.52291]
[1674253409156,2.51353,25.377,25.322,2.132]
[1674253409354,29.56,25.376,25.322,22.132]
[1674253409568,22.256667,25.379,25.323,84.90276814]
[1674253409779,22.256667,25.379,25.324,24.65461]
[1674253410102,2.51353,25.378,25.324,32.87919146]
[1674253410313,2.51353,25.378,25.325,63.04197801]
[1674253410526,22.256667,25.379,25.326,23.57641]
[1674253410722,22.256667,25.379,25.327,2.52231]
[1674253410930,22.256667,25.379,25.328,1.054]
[1674253411252,22.256667,25.379,25.328,126.32844106]
[1674253411451,22.256667,25.379,25.329,93.5672496]
[1674253411662,22.256667,25.379,25.33,21.054]
[1674253411873,22.256667,25.379,25.33,84.09597801]
[1674253412082,22.256667,25.379,25.331,63.04197801]
[1674253412292,22.256667,25.379,25.332,38.054]
[1674253412504,22.256667,25.379,25.332,101.09597801]
[1674253412737,22.256667,25.379,25.333,63.04197801]
[1674253412939,22.256667,25.379,25.334,38.054]
[1674253413151,22.256667,25.379,25.334,112.80316947]
[1674253413346,22.256667,25.379,25.335,52.29478655]
[1674253413565,22.256667,25.379,25.336,37.0]
[1674253413775,22.256667,25.379,25.337,3.48132]
[1674253413985,22.256667,25.379,25.337,94.5272496]
[1674253414202,22.256667,25.379,25.338,83.04197801]
[1674253414526,22.256667,25.379,25.339,64.00197801]
[1674253414740,22.256667,25.379,25.34,37.0]
[1674253414958,22.256667,25.379,25.341,3.48092]
[1674253415143,22.256667,25.379,25.342,2.52082]
[1674253415348,22.256667,25.379,25.342,53.85560655]
[1674253415685,22.256667,25.379,25.343,101.00197801]
[1674253416111,22.256667,25.379,25.344,63.04197801]
[1674253416299,22.256667,25.379,25.345,20.0]
[1674253416509,22.256667,25.379,25.345,31.70719146]
[1674253416730,22.256667,25.379,25.345,20.0]
[1674253416956,22.256667,25.379,25.346,11.70719146]
[1674253417262,22.256667,25.379,25.347,20.0]
[1674253417474,22.256667,25.379,25.348,2.52022]
[1674253417664,22.256667,25.379,25.348,83.52219801]
[1674253417874,22.256667,25.379,25.349,63.04197801]
[1674253418106,22.256667,25.379,25.35,40.48002]
[1674253418295,119.9227,25.428,25.35,40.48002]
[1674253418296,7.38709953,25.471,25.351,118.4]
[1674253418504,7.38709953,25.471,25.384,22.21062364]
[1674253418505,110.4072,25.44,25.384,22.21062364]
[1674253418711,110.4072,25.44,25.385,20.96]
[1674253418938,29.49,25.435,25.385,79.50350102]
[1674253419153,29.49,25.435,25.386,2.51645]
[1674253419343,29.49,25.435,25.387,0.96]
[1674253419559,29.49,25.435,25.388,2.51625]
[1674253419774,29.49,25.435,25.389,0.96]
[1674253419978,29.49,25.435,25.39,2.51605]
[1674253420182,29.49,25.435,25.391,0.96]
[1674253420411,29.49,25.435,25.392,2.51585]
[1674253420829,29.51,25.416,25.392,22.51585]
[1674253421039,29.49,25.435,25.392,2.51585]
[1674253421249,20.0,25.416,25.392,2.51585]
[1674253421451,20.0,25.416,25.387,46.83630956]
[1674253421452,29.52,25.415,25.387,46.83630956]
[1674253421662,29.52,25.415,25.388,2.51625]
[1674253422300,29.52,25.415,25.342,66.29842049]
[1674253422513,29.52,25.415,25.385,2.51655]
[1674253422919,29.52,25.415,25.338,266.13305381]
[1674253423344,29.52,25.415,25.338,332.59427663]
[1674253423764,29.52,25.415,25.338,266.13305381]
[1674253424180,0.96,25.414,25.338,136.22315212]
[1674253424394,11.22636159,25.416,25.385,2.51655]
[1674253424614,29.52,25.415,25.385,2.51655]
[1674253424818,11.22636159,25.416,25.385,2.51655]
[1674253425152,40.73636159,25.416,25.386,0.96]
[1674253425356,11.22636159,25.416,25.387,2.51635]
[1674253425569,29.52,25.415,25.388,0.96]
[1674253425760,29.52,25.415,25.389,2.51615]
[1674253425975,29.52,25.415,25.389,45.59804272]
[1674253426206,20.0,25.414,25.341,129.90990169]
[1674253426415,29.52,25.413,25.39,43.34189272]
[1674253426727,21.756667,25.436,25.388,46.83630956]
[1674253426728,29.51,25.416,25.388,46.83630956]
[1674253426916,29.51,25.416,25.381,43.34189272]
[1674253427127,29.51,25.416,25.385,2.51655]
[1674253427356,29.51,25.416,25.38,46.83630956]
[1674253427563,29.51,25.416,25.354,29.59]
[1674253427776,20.0,25.415,25.374,13.16104194]
[1674253428090,29.52,25.414,25.374,13.16104194]
[1674253428308,20.0,25.413,25.374,13.16104194]
[1674253428506,29.52,25.412,25.374,13.16104194]
[1674253428714,20.0,25.411,25.374,13.16104194]
[1674253428934,29.52,25.41,25.374,13.16104194]
[1674253429135,20.0,25.409,25.374,13.16104194]
[1674253429349,29.52,25.408,25.354,29.59]
[1674253429557,29.52,25.408,25.353,21.756667]
[1674253429757,20.0,25.407,25.354,29.59]
[1674253429972,29.53,25.406,25.354,29.59]
[1674253430398,20.0,25.407,25.375,13.16104194]
[1674253430616,20.0,25.415,25.385,17.96]
[1674253430827,29.51,25.416,25.385,17.96]
[1674253431450,29.51,25.416,25.386,2.51645]
[1674253431664,29.51,25.416,25.387,0.96]
[1674253432090,29.49,25.435,25.387,93.65455228]
[1674253432299,29.49,25.435,25.388,89.19251799]
[1674253432514,29.49,25.435,25.389,3.47615]
[1674253432701,29.49,25.435,25.39,2.51605]
[1674253432951,29.49,25.435,25.391,0.96]
[1674253433126,29.49,25.435,25.392,2.51585]
[1674253433562,29.49,25.435,25.393,0.96]
[1674253433778,29.49,25.435,25.394,2.51566]
[1674253433964,29.49,25.435,25.395,0.96]
[1674253434299,29.49,25.435,25.396,2.51546]
[1674253434504,29.49,25.435,25.397,0.96]
[1674253434726,29.49,25.435,25.396,54.29458672]
[1674253434727,29.49,25.435,25.398,2.51526]
[1674253435031,20.0,25.416,25.398,2.51526]
[1674253435768,29.52,25.415,25.364,29.58]
[1674253435959,29.52,25.415,25.385,2.51655]
[1674253437858,29.52,25.415,25.385,22.51655]
[1674253438279,49.51,25.416,25.385,72.89752623]
[1674253438482,49.51,25.416,25.386,17.0]
[1674253438699,20.0,25.416,25.387,3.47635]
[1674253438912,20.0,25.416,25.388,2.51625]
[1674253439128,29.52,25.415,25.388,19.51625]
[1674253439340,20.0,25.416,25.388,116.60682962]
[1674253439551,49.51,25.416,25.389,97.09057962]
[1674253439773,29.49,25.435,25.39,19.51605]
[1674253440075,29.49,25.435,25.391,2.51595]
[1674253440291,20.0,25.416,25.391,111.73119628]
[1674253440475,29.49,25.435,25.392,146.21524628]
[1674253440689,29.49,25.435,25.393,2.51575]
[1674253440900,29.49,25.435,25.393,111.50002962]
[1674253441113,29.49,25.435,25.394,125.64619295]
[1674253441335,29.49,25.435,25.395,22.51556]
[1674253441543,29.49,25.435,25.396,20.47546]
[1674253441759,29.49,25.435,25.397,22.51536]
[1674253442076,21.756667,25.436,25.398,20.47526]
[1674253442388,29.49,25.435,25.399,22.51516]
[1674253442573,21.756667,25.436,25.4,17.96]
[1674253442790,21.756667,25.436,25.401,22.51496]
[1674253442999,21.756667,25.436,25.402,20.47486]
[1674253443230,21.756667,25.436,25.403,22.51476]
[1674253443431,21.756667,25.436,25.404,3.47467]
[1674253443656,21.756667,25.436,25.405,2.51457]
[1674253443862,21.756667,25.436,25.406,0.96]
[1674253444193,21.756667,25.436,25.407,2.51437]
[1674253444390,21.756667,25.436,25.408,0.96]
[1674253444574,21.756667,25.436,25.409,2.51417]
[1674253444786,21.756667,25.436,25.41,0.96]
[1674253444996,21.756667,25.436,25.411,150.14397]
[1674253445205,21.756667,25.436,25.412,23.47387]
[1674253445422,21.756667,25.436,25.413,31.74377]
[1674253445626,21.756667,25.436,25.414,23.47368]
[1674253445851,21.756667,25.436,25.415,2.51358]
[1674253446054,21.256667,25.436,25.416,0.96]
[1674253446277,21.756667,25.455,25.417,31.74338]
[1674253446465,21.756667,25.455,25.418,20.47328]
[1674253446680,21.756667,25.455,25.419,31.26318]
[1674253446885,21.756667,25.455,25.42,20.47308]
[1674253447096,21.756667,25.455,25.421,31.25298]
[1674253447306,21.756667,25.455,25.422,19.51289]
[1674253447521,21.756667,25.455,25.423,19.51279]
[1674253447758,21.756667,25.455,25.424,2.51269]
[1674253447959,21.756667,25.455,25.424,113.98929009]
[1674253448170,21.756667,25.455,25.425,88.14220053]
[1674253448387,21.756667,25.455,25.426,2.51249]
[1674253448594,21.756667,25.455,25.427,28.74]
[1674253448809,21.756667,25.455,25.428,22.51229]
[1674253449014,21.756667,25.455,25.429,19.51219]
[1674253449231,21.756667,25.455,25.43,22.51209]
[1674253449427,21.756667,25.455,25.431,2.512]
[1674253449642,21.756667,25.455,25.431,54.62630956]
[1674253449855,21.756667,25.455,25.432,59.36229053]
[1674253450072,21.756667,25.455,25.433,2.5118]
[1674253450807,49.47,25.454,25.433,2.5118]
[1674253451021,29.47,25.454,25.433,2.5118]
[1674253451443,29.47,25.454,25.392,29.02]
[1674253451629,29.47,25.454,25.394,2.51566]
[1674253451630,139.2471,25.454,25.394,2.51566]
[1674253451836,20.0,25.453,25.394,2.51566]
[1674253452051,29.47,25.452,25.395,68.1832891]
[1674253452261,20.0,25.451,25.397,2.51536]
[1674253452470,29.48,25.45,25.397,2.51536]
[1674253452792,20.0,25.449,25.398,68.1832891]
[1674253453005,46.48,25.448,25.399,2.51516]
[1674253453212,20.0,25.447,25.399,53.45698387]
[1674253453442,47.44,25.446,25.399,105.22462676]
[1674253453755,20.0,25.445,25.399,2.01516]
[1674253454063,47.44,25.444,25.399,2.01516]
[1674253454279,20.0,25.443,25.391,21.756667]
[1674253454472,29.48,25.442,25.392,2.51585]
[1674253454686,20.0,25.441,25.392,2.51585]
[1674253454899,148.85,25.44,25.392,2.51585]
[1674253455099,20.0,25.439,25.392,2.51585]
[1674253455313,30.45,25.438,25.392,2.51585]
[1674253455549,37.0,25.437,25.392,2.51585]
[1674253455848,30.45,25.436,25.392,2.51585]
[1674253456063,20.0,25.435,25.392,2.51585]
[1674253456273,29.49,25.434,25.392,2.51585]
[1674253456492,37.0,25.433,25.392,2.51585]
[1674253456800,37.0,25.433,25.391,21.756667]
[1674253456801,29.5,25.432,25.391,21.756667]
[1674253456988,118.4,25.43,25.391,21.756667]
[1674253457194,37.0,25.431,25.391,21.756667]
[1674253457195,69.01689,25.429,25.391,21.756667]
[1674253457409,118.4,25.428,25.391,21.756667]
[1674253457619,170.41689,25.427,25.391,21.756667]
[1674253457946,118.4,25.425,25.391,21.756667]
[1674253458158,26.27265951,25.426,25.353,21.756667]
[1674253458159,118.4,25.423,25.353,21.756667]
[1674253458476,118.4,25.421,25.353,21.756667]
[1674253458685,120.91689,25.419,25.353,21.756667]
[1674253458916,120.91689,25.417,25.353,21.756667]
[1674253459124,118.4,25.415,25.353,21.756667]
[1674253459333,118.4,25.413,25.353,21.756667]
[1674253459530,118.4,25.411,25.353,19.256667]
[1674253459742,118.4,25.409,25.353,19.256667]
[1674253460065,118.4,25.407,25.353,19.256667]
[1674253460255,118.4,25.405,25.353,19.256667]
[1674253460466,118.4,25.403,25.353,19.256667]
[1674253460709,118.4,25.401,25.353,19.256667]
[1674253460912,118.4,25.399,25.353,19.256667]
[1674253461103,118.4,25.397,25.353,19.256667]
[1674253461313,118.4,25.395,25.353,19.256667]
[1674253461523,118.4,25.393,25.353,19.256667]
[1674253461741,49.54,25.392,25.353,19.256667]
[1674253462069,17.0,25.391,25.353,19.256667]
[1674253462279,49.54,25.39,25.353,19.256667]
[1674253462807,23.75576951,25.389,25.354,0.96]
[1674253463016,66.55,25.388,25.353,19.256667]
[1674253463326,67.51,25.388,25.353,19.256667]
[1674253463514,49.55,25.388,25.353,19.256667]
[1674253463930,167.95,25.388,25.353,19.256667]
[1674253464145,23.75576951,25.387,25.353,19.256667]
[1674253464356,49.55,25.386,25.353,19.256667]
[1674253464989,118.4,25.385,25.353,19.256667]
[1674253465199,118.4,25.383,25.353,19.256667]
[1674253465408,29.55,25.382,25.353,19.256667]
[1674253465617,53.30576951,25.382,25.353,19.256667]
[1674253465842,142.15576951,25.381,25.353,19.256667]
[1674253466159,49.56,25.38,25.353,19.256667]
[1674253466374,17.96,25.379,25.353,19.256667]
[1674253466708,29.52,25.412,25.353,19.256667]
[1674253466876,22.51689,25.411,25.353,19.256667]
[1674253467085,118.4,25.409,25.353,19.256667]
[1674253467297,118.4,25.407,25.354,2.51962]
[1674253467508,118.4,25.405,25.354,2.51962]
[1674253467727,29.53,25.406,25.355,16.74146523]
[1674253467728,29.53,25.404,25.355,16.74146523]
[1674253467940,29.53,25.405,25.356,2.51943]
[1674253468148,120.0,25.415,25.356,22.51943]
[1674253468149,23.75576951,25.403,25.356,22.51943]
[1674253468357,29.53,25.402,25.357,17.96]
[1674253468570,29.53,25.402,25.358,20.0]
[1674253468763,23.75576951,25.401,25.359,17.96]
[1674253468979,29.53,25.4,25.36,20.0]
[1674253469189,29.53,25.4,25.361,17.96]
[1674253469505,33.3497395,25.399,25.362,20.0]
[1674253469724,29.54,25.398,25.363,17.96]
[1674253469927,103.2753944,25.398,25.353,19.256667]
[1674253470259,240.7160239,25.397,25.353,19.256667]
[1674253470498,118.4,25.395,25.353,19.256667]
[1674253470714,167.94,25.394,25.353,19.256667]
[1674253470922,17.0,25.393,25.353,19.256667]
[1674253471237,118.4,25.391,25.353,19.256667]
[1674253471439,118.4,25.389,25.353,19.256667]
[1674253471649,118.4,25.387,25.288,92.55930436]
[1674253471860,118.4,25.385,25.288,66.31539369]
[1674253472186,118.4,25.383,25.285,66.73422191]
[1674253472386,53.02689,25.384,25.273,111.4792]
[1674253472387,118.4,25.381,25.289,66.07495075]
[1674253472597,118.4,25.379,25.334,18.756667]
[1674253472806,118.4,25.377,25.334,18.756667]
[1674253473002,118.4,25.375,25.334,18.756667]
[1674253473220,118.4,25.373,25.334,18.756667]
[1674253473425,118.4,25.373,25.265,111.4792]
[1674253473426,118.4,25.371,25.292,66.22344541]
[1674253473640,118.4,25.369,25.31,16.74146523]
[1674253473852,70.04689,25.37,25.31,16.74146523]
[1674253473853,118.4,25.367,25.31,16.74146523]
[1674253474080,66.57,25.366,25.316,2.52341]
[1674253474295,49.57,25.366,25.317,1.335]
[1674253474479,23.75576951,25.365,25.318,2.52321]
[1674253474687,23.75576951,25.365,25.319,1.335]
[1674253474902,29.56,25.378,25.32,2.52301]
[1674253475110,29.56,25.378,25.321,2.295]
[1674253475329,29.56,25.378,25.322,2.52281]
[1674253475542,29.56,25.378,25.323,2.295]
[1674253475752,118.4,25.376,25.324,2.52261]
[1674253475970,77.21817567,25.377,25.315,21.756667]
[1674253475971,29.56,25.375,25.326,2.52241]
[1674253476284,21.756667,25.379,25.326,2.52241]
[1674253476513,21.756667,25.379,25.327,75.2642891]
[1674253476823,21.756667,25.379,25.328,76.4514991]
[1674253477009,32.4657395,25.378,25.329,2.52211]
[1674253477225,21.756667,25.379,25.329,73.96504046]
[1674253477422,21.756667,25.379,25.33,16.74146523]
[1674253477632,21.756667,25.379,25.331,40.48191]
[1674253477859,21.756667,25.379,25.332,2.52181]
[1674253478083,23.75576951,25.378,25.332,19.26327523]
[1674253478274,29.56,25.377,25.332,2.52181]
[1674253478490,17.0,25.376,25.327,1.335]
[1674253478701,29.56,25.375,25.327,1.335]
[1674253479037,17.96,25.374,25.327,1.335]
[1674253479226,49.56,25.373,25.328,2.52221]
[1674253479559,73.31576951,25.373,25.329,0.96]
[1674253479754,73.31576951,25.373,25.33,2.52201]
[1674253479959,23.75576951,25.372,25.331,0.96]
[1674253480179,34.37240616,25.378,25.333,2.52171]
[1674253480395,17.0,25.372,25.334,1.206]
[1674253480608,21.756667,25.379,25.335,2.52151]
[1674253480799,21.756667,25.379,25.336,1.205]
[1674253481013,21.756667,25.379,25.337,2.52132]
[1674253481239,21.756667,25.379,25.338,1.205]
[1674253481556,21.756667,25.379,25.34,2.52102]
[1674253481763,21.756667,25.379,25.341,1.205]
[1674253481955,21.756667,25.379,25.342,2.52082]
[1674253482167,21.756667,25.379,25.343,1.205]
[1674253482384,21.756667,25.379,25.344,3.48062]
[1674253482604,21.756667,25.379,25.345,2.52052]
[1674253482801,21.756667,25.379,25.346,0.96]
[1674253483003,21.756667,25.379,25.347,2.52032]
[1674253483216,21.756667,25.379,25.348,0.96]
[1674253483440,21.756667,25.379,25.349,2.52012]
[1674253483640,21.756667,25.379,25.35,0.96]
[1674253483852,21.756667,25.379,25.351,2.51992]
[1674253484057,21.756667,25.379,25.351,36.26138523]
[1674253484264,21.756667,25.379,25.352,36.74146523]
[1674253484479,21.756667,25.379,25.353,2.51972]
[1674253484698,21.756667,25.379,25.353,19.26118523]
[1674253485004,21.756667,25.379,25.354,36.74146523]
[1674253485322,21.756667,25.379,25.355,2.51953]
[1674253485960,21.756667,25.379,25.352,16.74146523]
[1674253486179,21.756667,25.379,25.343,1.205]
[1674253486373,21.756667,25.379,25.344,19.26208523]
[1674253486580,21.756667,25.379,25.345,2.52052]
[1674253486912,35.97435283,25.378,25.345,2.52052]
[1674253487226,29.56,25.377,25.345,2.52052]
[1674253487441,29.56,25.378,25.345,2.52052]
[1674253487974,21.756667,25.379,25.346,16.74146523]
[1674253488274,21.756667,25.379,25.315,140.156667]
[1674253488275,21.756667,25.379,25.347,2.52032]
[1674253490894,21.756667,25.379,25.348,0.96]
[1674253491113,21.756667,25.379,25.349,2.52012]
[1674253491328,21.756667,25.379,25.35,0.96]
[1674253491534,21.756667,25.379,25.351,2.51992]
[1674253493019,51.316667,25.379,25.351,2.51992]
[1674253493233,21.756667,25.379,25.351,2.51992]
[1674253494586,46.56,25.378,25.351,2.51992]
[1674253494815,20.96,25.377,25.351,2.51992]
[1674253495018,46.56,25.376,25.351,2.51992]
[1674253495219,119.36,25.375,25.318,1.001]
[1674253495439,119.36,25.375,25.315,21.756667]
[1674253495440,118.4,25.373,25.319,2.52311]
[1674253495640,148.93,25.372,25.319,2.52311]
[1674253495847,29.57,25.372,25.319,2.52311]
[1674253496051,29.56,25.376,25.32,17.74246523]
[1674253496260,29.56,25.376,25.322,2.52281]
[1674253496492,23.75576951,25.375,25.322,2.52281]
[1674253496702,29.56,25.374,25.322,2.52281]
[1674253497225,162.15576951,25.373,25.322,2.52281]
[1674253497432,118.4,25.371,25.322,2.52281]
[1674253497643,118.4,25.369,25.322,2.52281]
[1674253497841,185.93,25.368,25.322,2.52281]
[1674253498051,17.96,25.367,25.322,2.52281]
[1674253498280,49.57,25.366,25.322,2.52281]
[1674253499531,173.15924616,25.365,25.322,2.52281]
[1674253499745,118.4,25.363,25.322,2.52281]
[1674253499960,165.94,25.362,25.322,2.52281]
[1674253500356,23.75576951,25.361,25.322,2.52281]
[1674253500678,165.94,25.36,25.322,2.52281]
[1674253500882,29.58,25.36,25.322,2.52281]
[1674253501094,51.98665555,25.36,25.322,2.52281]
[1674253501305,81.56665555,25.359,25.322,2.52281]
[1674253501515,20.0,25.358,25.322,2.52281]
[1674253501727,29.58,25.357,25.322,2.52281]
[1674253501942,20.0,25.356,25.322,2.52281]
[1674253502151,29.59,25.355,25.322,2.52281]
[1674253502899,41.7017195,25.359,25.322,2.52281]
[1674253503091,41.7017195,25.355,25.322,2.52281]
[1674253503301,29.59,25.354,25.322,2.52281]
[1674253503523,23.75576951,25.364,25.322,2.52281]
[1674253503524,29.58,25.363,25.322,2.52281]
[1674253503735,118.4,25.352,25.315,21.756667]
[1674253503932,29.59,25.351,25.315,21.756667]
[1674253504153,37.96,25.35,25.316,2.52341]
[1674253504377,118.4,25.348,25.315,21.756667]
[1674253504593,47.55,25.347,25.315,21.756667]
[1674253504916,20.0,25.346,25.315,21.756667]
[1674253505126,47.56,25.345,25.315,21.756667]
[1674253505312,20.0,25.344,25.315,21.756667]
[1674253505526,47.56,25.343,25.315,21.756667]
[1674253505736,20.0,25.342,25.315,21.756667]
[1674253505955,29.6,25.341,25.315,21.756667]
[1674253506277,98.28170839,25.341,25.315,21.756667]
[1674253506473,29.6,25.342,25.315,21.756667]
[1674253506474,118.4,25.339,25.315,21.756667]
[1674253506678,29.61,25.338,25.315,21.756667]
[1674253506894,58.22665555,25.338,25.315,21.756667]
[1674253507109,118.4,25.336,25.315,21.756667]
[1674253507316,118.4,25.334,25.315,21.756667]
[1674253507524,67.57,25.333,25.315,21.756667]
[1674253507948,89.2717195,25.333,25.315,21.756667]
[1674253508173,123.68414456,25.332,25.315,21.756667]
[1674253508380,47.57,25.331,25.315,21.756667]
[1674253508602,30.57,25.331,25.315,21.756667]
[1674253508992,0.96,25.33,25.315,21.756667]
[1674253509213,29.62,25.329,25.315,21.756667]
[1674253509650,0.96,25.328,25.315,21.756667]